fUSD/lending_fUSD_20250726
["ID","MTS","AMOUNT","RATE_DAILY","PERIOD"]
[374980912,1753488146858,213.68711,0.0002739,120]
[374980913,1753488245240,640.0,0.00025627,120]
[374980914,1753488264246,3486.0,0.00027397,120]
[374980915,1753488287455,390.0,0.00027397,120]
[374980918,1753488606206,216.09,0.00013699,2]
[374980922,1753488632799,-674.07,0.00019178,2]
[374980923,1753488632810,-151.0,0.00019734,2]
[374980925,1753488632819,-216.09,0.00020187,2]
[374980927,1753488632829,-150.0,0.00020195,2]
[374980928,1753488632840,-150.0,0.00020195,2]
[374980930,1753488632849,-150.0,0.00020195,2]
[374980932,1753488632859,-150.0,0.00020195,2]
[374980934,1753488632868,-365.21,0.0002046,2]
[374980936,1753488632878,-152.95,0.0002046,2]
[374980938,1753488632888,-640.0,0.00020501,2]
[374980940,1753488632898,-1000.0,0.00020503,2]
[374980942,1753488632907,-1200.0,0.00020531,2]
[374980944,1753488632917,-2179.51,0.00020532,2]
[374980945,1753488632927,-180.0,0.0002055,7]
[374980946,1753488632938,-23900.0,0.00020558,2]
[374980947,1753488632947,-2799.91,0.0002056,2]
[374980950,1753488632957,-152.95,0.00020562,2]
[374980952,1753488632966,-152.95,0.00020665,2]
[374980954,1753488632976,-1044.03,0.000207,2]
[374980955,1753488632985,-674.07,0.00020712,2]
[374980956,1753488632995,-182.03,0.00020733,2]
[374980957,1753488633005,-658.4,0.00020748,2]
[374980958,1753488633015,-165.79,0.00020777,2]
[374980959,1753488633024,-666.0,0.00020854,3]
[374980960,1753488633035,-165.41,0.00020878,2]
[374980961,1753488633046,-1243.01362497,0.000209,4]
[374980962,1753488633056,-9614.50634267,0.0002093,2]
[374980963,1753488633066,-345.04,0.0002095,2]
[374980964,1753488633076,-172.52,0.0002095,2]
[374980965,1753488633086,-1243.01362492,0.00020969,4]
[374980966,1753488633096,-1243.01362492,0.00021038,4]
[374980967,1753488633106,-463.56,0.00021064,2]
[374980968,1753488633116,-167.07,0.00021079,2]
[374980969,1753488633126,-2000.0,0.00021096,3]
[374980970,1753488633135,-1243.01362492,0.00021107,4]
[374980971,1753488633150,-1243.01362492,0.00021176,4]
[374980972,1753488633160,-1243.01362492,0.00021245,4]
[374980973,1753488633171,-835.65,0.00021279,2]
[374980974,1753488633180,-1243.01362492,0.00021314,5]
[374980975,1753488633191,-9216.856,0.0002134,2]
[374980976,1753488633202,-248.71531821,0.0002134,2]
[374980977,1753488633213,-1243.01362492,0.00021383,5]
[374980978,1753488633223,-500.0,0.000214,7]
[374980979,1753488633233,-1243.01362492,0.00021452,5]
[374980980,1753488633243,-1100.0,0.000215,7]
[374980981,1753488633253,-1243.01362492,0.00021521,5]
[374980982,1753488633263,-1243.01362492,0.0002159,5]
[374980983,1753488633273,-1600.0,0.000216,7]
[374980984,1753488633283,-1243.01362492,0.00021659,5]
[374980985,1753488633292,-2200.0,0.000217,7]
[374980986,1753488633302,-1000.0,0.000217,2]
[374980987,1753488633312,-1243.01362492,0.00021728,5]
[374980988,1753488633321,-409.519466,0.00021747,8]
[374980989,1753488633331,-172.52,0.00021772,2]
[374980990,1753488633340,-172.52,0.00021772,2]
[374980991,1753488633350,-2345.78,0.00021772,2]
[374980992,1753488633360,-169.68,0.00021789,2]
[374980993,1753488633371,-1243.01362492,0.00021797,6]
[374980994,1753488633381,-2700.0,0.000218,7]
[374980995,1753488633391,-151.0,0.00021804,2]
[374980996,1753488633401,-600.0,0.00021804,2]
[374980997,1753488633411,-373.07297731,0.00021804,2]
[374980998,1753488633421,-151.0,0.00021804,2]
[374980999,1753488633431,-500.0,0.00021804,2]
[374981000,1753488633441,-500.0,0.00021804,2]
[374981001,1753488633450,-500.0,0.00021804,2]
[374981002,1753488633460,-500.0,0.00021804,2]
[374981004,1753488633470,-500.0,0.00021804,2]
[374981005,1753488633480,-500.0,0.00021804,2]
[374981006,1753488633490,-500.0,0.00021804,2]
[374981007,1753488633500,-500.0,0.00021804,2]
[374981008,1753488633510,-500.0,0.00021804,2]
[374981009,1753488633520,-500.0,0.00021804,2]
[374981010,1753488633529,-500.0,0.00021804,2]
[374981011,1753488633538,-500.0,0.00021804,2]
[374981012,1753488633548,-325.51454745,0.00021804,2]
[374981013,1753488633558,-984.25726063,0.00021816,2]
[374981014,1753488633568,-1400.2125,0.00021817,2]
[374981015,1753488633578,-1500.0,0.00021817,2]
[374981016,1753488633588,-3492.5804,0.00021817,2]
[374981017,1753488633598,-4370.61979703,0.00021817,2]
[374981018,1753488633610,-604.0,0.00021817,2]
[374981019,1753488633631,-25.38020297,0.00021817,2]
[374981020,1753488633640,-407.44762322,0.00021817,2]
[374981021,1753488633650,-195.4919529,0.00021817,2]
[374981022,1753488633660,-181.58606213,0.00021817,2]
[374981023,1753488633669,-157.05742875,0.00021817,2]
[374981024,1753488633679,-1855.0,0.00021819,2]
[374981025,1753488633689,-1855.0,0.00021842,2]
[374981026,1753488633698,-984.25726062,0.00021847,2]
[374981027,1753488633708,-1243.01362492,0.00021866,6]
[374981028,1753488633719,-984.25726062,0.00021877,2]
[374981029,1753488633729,-918.92,0.00021886,2]
[374981030,1753488633739,-358.31,0.00021886,2]
[374981031,1753488633749,-358.31,0.00021886,2]
[374981032,1753488633759,-459.46,0.00021886,2]
[374981033,1753488633769,-459.46,0.00021886,2]
[374981034,1753488633778,-358.31,0.00021886,2]
[374981035,1753488633788,-165.06,0.00021886,2]
[374981036,1753488633798,-165.06,0.00021886,2]
[374981037,1753488633808,-9557.879672,0.00021888,2]
[374981038,1753488633818,-500.0,0.000219,7]
[374981039,1753488633827,-2607.96,0.000219,2]
[374981040,1753488633837,-156.04,0.00021907,2]
[374981041,1753488633847,-984.25726062,0.00021908,2]
[374981042,1753488633856,-12185.78891549,0.00021911,7]
[374981043,1753488633869,-2219.32613311,0.00021911,7]
[374981044,1753488633879,-176.53421094,0.00021916,2]
[374981045,1753488633889,-522.67444,0.00021916,2]
[374981046,1753488633899,-189.40838966,0.00021916,2]
[374981047,1753488633909,-14227.95584427,0.00021917,2]
[374981048,1753488633925,-180277.4177484,0.00021917,2]
[374981049,1753488633954,-84761.87769026,0.00021917,2]
[374981052,1753488638420,-2227.90872164,0.00021725,2]
[374981234,1753488640479,-563.04839119,0.00021725,2]
[374981236,1753488640491,-1339.04288717,0.00021725,2]
[374981238,1753488640500,-863.0,0.00021725,2]
[374981240,1753488640510,-14405.12027487,0.00021907,7]
[374981242,1753488640520,-940423.48758007,0.00021917,2]
[374981245,1753488640529,-16677.12182354,0.00021917,2]
[374981262,1753488640611,-3836.11025975,0.00021917,2]
[374981265,1753488640620,-534.66,0.00021917,2]
[374981268,1753488640630,-400.0,0.00021917,2]
[374981271,1753488640639,-1294.54,0.00021917,2]
[374981274,1753488640648,-400.0,0.00021917,2]
[374981277,1753488640658,-417.79295525,0.00021917,2]
[374981280,1753488640667,-400.0,0.00021917,2]
[374981283,1753488640677,-400.0,0.00021917,2]
[374981286,1753488640687,-400.0,0.00021917,2]
[374981289,1753488640696,-400.0,0.00021917,2]
[374981292,1753488640706,-127.97309095,0.00021917,2]
[374981295,1753488640720,-26.87619805,0.00021917,2]
[374981298,1753488640729,-938.86,0.00021917,2]
[374981301,1753488640739,-400.0,0.00021917,2]
[374981304,1753488640748,-400.0,0.00021917,2]
[374981308,1753488640758,-400.0,0.00021917,2]
[374981311,1753488640768,-400.0,0.00021917,2]
[374981313,1753488640778,-400.0,0.00021917,2]
[374981315,1753488640787,-400.0,0.00021917,2]
[374981317,1753488640797,-164.87829,0.00021917,2]
[374981319,1753488640806,-152.054298,0.00021917,2]
[374981321,1753488640815,-400.0,0.00021917,2]
[374981323,1753488640825,-400.0,0.00021917,2]
[374981325,1753488640834,-155.655879,0.00021917,2]
[374981327,1753488640844,-400.0,0.00021917,2]
[374981329,1753488640854,-400.0,0.00021917,2]
[374981331,1753488640864,-400.0,0.00021917,2]
[374981333,1753488640873,-400.0,0.00021917,2]
[374981334,1753488640882,-493.11,0.00021917,2]
[374981336,1753488640892,-442.97335058,0.00021917,2]
[374981338,1753488640902,-400.0,0.00021917,2]
[374981339,1753488640912,-190.26087155,0.00021917,2]
[374981342,1753488640926,-209.73912845,0.00021917,2]
[374981344,1753488640936,-400.0,0.00021917,2]
[374981345,1753488640947,-510.4,0.00021917,2]
[374981347,1753488640957,-400.0,0.00021917,2]
[374981349,1753488640967,-400.0,0.00021917,2]
[374981351,1753488640978,-400.0,0.00021917,2]
[374981353,1753488640988,-400.0,0.00021917,2]
[374981354,1753488640997,-400.0,0.00021917,2]
[374981356,1753488641007,-400.0,0.00021917,2]
[374981358,1753488641016,-432.66,0.00021917,2]
[374981360,1753488641026,-400.0,0.00021917,2]
[374981361,1753488641037,-400.0,0.00021917,2]
[374981363,1753488641049,-898.14,0.00021917,2]
[374981365,1753488641058,-400.0,0.00021917,2]
[374981367,1753488641068,-400.0,0.00021917,2]
[374981369,1753488641078,-400.0,0.00021917,2]
[374981371,1753488641088,-400.0,0.00021917,2]
[374981372,1753488641098,-440.0,0.00021917,2]
[374981374,1753488641108,-400.0,0.00021917,2]
[374981376,1753488641117,-400.0,0.00021917,2]
[374981378,1753488641126,-452.84473617,0.00021917,2]
[374981380,1753488641141,-48.61526383,0.00021917,2]
[374981381,1753488641154,-400.0,0.00021917,2]
[374981383,1753488641163,-205.23470486,0.00021917,2]
[374981385,1753488641172,-400.0,0.00021917,2]
[374981387,1753488641182,-400.0,0.00021917,2]
[374981389,1753488641193,-400.0,0.00021917,2]
[374981391,1753488641203,-400.0,0.00021917,2]
[374981392,1753488641212,-826.64,0.00021917,2]
[374981394,1753488641223,-290.833651,0.00021917,2]
[374981396,1753488641233,-400.0,0.00021917,2]
[374981398,1753488641242,-400.0,0.00021917,2]
[374981400,1753488641251,-684.03,0.00021917,2]
[374981402,1753488641262,-598.53,0.00021917,2]
[374981403,1753488641271,-400.0,0.00021917,2]
[374981405,1753488641281,-150.0,0.00021917,2]
[374981407,1753488641292,-400.0,0.00021917,2]
[374981409,1753488641301,-150.0,0.00021917,2]
[374981410,1753488641310,-500.0,0.00021917,2]
[374981412,1753488641320,-400.0,0.00021917,2]
[374981414,1753488641330,-150.0,0.00021917,2]
[374981416,1753488641339,-400.0,0.00021917,2]
[374981417,1753488641349,-400.0,0.00021917,2]
[374981419,1753488641358,-400.0,0.00021917,2]
[374981421,1753488641368,-150.0,0.00021917,2]
[374981423,1753488641377,-123.66504183,0.00021917,2]
[374981425,1753488641392,-26.33495817,0.00021917,2]
[374981427,1753488641401,-400.0,0.00021917,2]
[374981429,1753488641411,-150.0,0.00021917,2]
[374981431,1753488641421,-150.0,0.00021917,2]
[374981433,1753488641431,-400.0,0.00021917,2]
[374981434,1753488641440,-400.0,0.00021917,2]
[374981436,1753488641449,-150.0,0.00021917,2]
[374981438,1753488641459,-400.78227501,0.00021917,2]
[374981440,1753488641468,-150.0,0.00021917,2]
[374981442,1753488641477,-936.6,0.00021917,2]
[374981443,1753488641487,-400.0,0.00021917,2]
[374981445,1753488641496,-400.0,0.00021917,2]
[374981447,1753488641506,-400.0,0.00021917,2]
[374981449,1753488641515,-400.0,0.00021917,2]
[374981451,1753488641525,-400.0,0.00021917,2]
[374981453,1753488641534,-400.0,0.00021917,2]
[374981454,1753488641544,-400.0,0.00021917,2]
[374981456,1753488641554,-400.0,0.00021917,2]
[374981458,1753488641563,-400.0,0.00021917,2]
[374981460,1753488641572,-527.29,0.00021917,2]
[374981462,1753488641582,-400.0,0.00021917,2]
[374981464,1753488641591,-400.0,0.00021917,2]
[374981466,1753488641601,-500.0,0.00021917,2]
[374981467,1753488641611,-352.83300171,0.00021917,2]
[374981475,1753488641691,-147.16699829,0.00021917,2]
[374981477,1753488641700,-500.0,0.00021917,2]
[374981479,1753488641711,-338.7,0.00021917,2]
[374981481,1753488641721,-400.0,0.00021917,2]
[374981482,1753488641731,-400.0,0.00021917,2]
[374981498,1753488641894,-143.56454416,0.00021917,2]
[374981501,1753488641920,-369.72749978,0.00021917,2]
[374982046,1753488647543,-3312.0,0.00021801,7]
[374982058,1753488647770,-11093.12027487,0.00021801,7]
[374982060,1753488647779,-104.54795606,0.00021917,2]
[374982062,1753488647789,-400.0,0.00021917,2]
[374982065,1753488647799,-824.31,0.00021917,2]
[374982066,1753488647809,-400.0,0.00021917,2]
[374982068,1753488647818,-400.0,0.00021917,2]
[374982071,1753488647828,-684.13,0.00021917,2]
[374982073,1753488647838,-400.0,0.00021917,2]
[374982075,1753488647848,-652.72,0.00021917,2]
[374982076,1753488647858,-400.0,0.00021917,2]
[374982078,1753488647868,-1035.17,0.00021917,2]
[374982081,1753488647879,-528.45911448,0.00021917,2]
[374982083,1753488647888,-400.0,0.00021917,2]
[374982085,1753488647899,-400.0,0.00021917,2]
[374982086,1753488647908,-400.0,0.00021917,2]
[374982089,1753488647919,-400.0,0.00021917,2]
[374982091,1753488647929,-400.0,0.00021917,2]
[374982093,1753488647938,-400.0,0.00021917,2]
[374982095,1753488647948,-400.0,0.00021917,2]
[374982097,1753488647958,-400.0,0.00021917,2]
[374982099,1753488647967,-400.0,0.00021917,2]
[374982100,1753488647977,-677.55,0.00021917,2]
[374982103,1753488647987,-400.0,0.00021917,2]
[374982104,1753488647996,-400.0,0.00021917,2]
[374982107,1753488648006,-400.0,0.00021917,2]
[374982108,1753488648015,-469.79,0.00021917,2]
[374982110,1753488648025,-400.0,0.00021917,2]
[374982113,1753488648035,-400.0,0.00021917,2]
[374982115,1753488648046,-1184.6,0.00021917,2]
[374982116,1753488648056,-400.0,0.00021917,2]
[374982119,1753488648066,-400.0,0.00021917,2]
[374982120,1753488648076,-400.0,0.00021917,2]
[374982122,1753488648085,-400.0,0.00021917,2]
[374982125,1753488648095,-400.0,0.00021917,2]
[374982127,1753488648105,-1868.39,0.00021917,2]
[374982129,1753488648115,-400.0,0.00021917,2]
[374982130,1753488648124,-400.0,0.00021917,2]
[374982132,1753488648134,-400.0,0.00021917,2]
[374982134,1753488648147,-400.0,0.00021917,2]
[374982136,1753488648157,-956.07,0.00021917,2]
[374982139,1753488648167,-400.0,0.00021917,2]
[374982141,1753488648176,-1551.95,0.00021917,2]
[374982143,1753488648186,-421.1,0.00021917,2]
[374982145,1753488648195,-1727.69,0.00021917,2]
[374982147,1753488648205,-400.0,0.00021917,2]
[374982149,1753488648214,-400.0,0.00021917,2]
[374982151,1753488648223,-400.0,0.00021917,2]
[374982152,1753488648233,-400.0,0.00021917,2]
[374982155,1753488648244,-1408.7,0.00021917,2]
[374982157,1753488648254,-400.0,0.00021917,2]
[374982159,1753488648264,-989.46,0.00021917,2]
[374982160,1753488648274,-400.0,0.00021917,2]
[374982163,1753488648284,-400.0,0.00021917,2]
[374982164,1753488648294,-400.0,0.00021917,2]
[374982166,1753488648304,-400.0,0.00021917,2]
[374982168,1753488648313,-400.0,0.00021917,2]
[374982171,1753488648323,-400.0,0.00021917,2]
[374982172,1753488648333,-400.0,0.00021917,2]
[374982175,1753488648344,-452.75,0.00021917,2]
[374982177,1753488648353,-400.0,0.00021917,2]
[374982179,1753488648363,-400.0,0.00021917,2]
[374982181,1753488648374,-400.0,0.00021917,2]
[374982183,1753488648383,-1113.59,0.00021917,2]
[374982185,1753488648393,-468.99,0.00021917,2]
[374982187,1753488648402,-937.86,0.00021917,2]
[374982189,1753488648413,-402.26,0.00021917,2]
[374982191,1753488648423,-400.0,0.00021917,2]
[374982193,1753488648432,-400.0,0.00021917,2]
[374982195,1753488648441,-400.0,0.00021917,2]
[374982197,1753488648451,-400.0,0.00021917,2]
[374982199,1753488648460,-400.0,0.00021917,2]
[374982200,1753488648469,-400.0,0.00021917,2]
[374982203,1753488648479,-958.07,0.00021917,2]
[374982205,1753488648489,-400.0,0.00021917,2]
[374982207,1753488648499,-400.0,0.00021917,2]
[374982209,1753488648509,-400.0,0.00021917,2]
[374982211,1753488648518,-955.22,0.00021917,2]
[374982213,1753488648527,-400.0,0.00021917,2]
[374982214,1753488648538,-400.0,0.00021917,2]
[374982217,1753488648550,-400.0,0.00021917,2]
[374982219,1753488648560,-400.0,0.00021917,2]
[374982220,1753488648570,-400.0,0.00021917,2]
[374982223,1753488648579,-400.0,0.00021917,2]
[374982225,1753488648590,-400.0,0.00021917,2]
[374982226,1753488648599,-400.0,0.00021917,2]
[374982228,1753488648609,-400.0,0.00021917,2]
[374982230,1753488648619,-741.85,0.00021917,2]
[374982232,1753488648628,-400.0,0.00021917,2]
[374982234,1753488648638,-1034.04,0.00021917,2]
[374982236,1753488648647,-400.0,0.00021917,2]
[374982238,1753488648657,-400.0,0.00021917,2]
[374982240,1753488648667,-151.0,0.00021917,2]
[374982242,1753488648677,-1076.56,0.00021917,2]
[374982244,1753488648687,-400.0,0.00021917,2]
[374982246,1753488648697,-483.86,0.00021917,2]
[374982249,1753488648709,-1456.99,0.00021917,2]
[374982251,1753488648719,-400.0,0.00021917,2]
[374982253,1753488648729,-400.0,0.00021917,2]
[374982255,1753488648739,-400.0,0.00021917,2]
[374982257,1753488648748,-400.0,0.00021917,2]
[374982259,1753488648758,-400.0,0.00021917,2]
[374982261,1753488648767,-400.0,0.00021917,2]
[374982263,1753488648777,-400.0,0.00021917,2]
[374982265,1753488648786,-637.9,0.00021917,2]
[374982267,1753488648797,-400.0,0.00021917,2]
[374982269,1753488648806,-400.0,0.00021917,2]
[374982271,1753488648816,-400.0,0.00021917,2]
[374982273,1753488648827,-453.2,0.00021917,2]
[374982275,1753488648837,-400.0,0.00021917,2]
[374982277,1753488648848,-400.0,0.00021917,2]
[374982279,1753488648858,-3300.81,0.00021917,2]
[374982281,1753488648867,-400.0,0.00021917,2]
[374982283,1753488648877,-400.0,0.00021917,2]
[374982285,1753488648887,-400.0,0.00021917,2]
[374982287,1753488648896,-532.58398822,0.00021917,2]
[374982289,1753488648906,-400.0,0.00021917,2]
[374982291,1753488648915,-400.0,0.00021917,2]
[374982293,1753488648924,-400.0,0.00021917,2]
[374982295,1753488648934,-490.46,0.00021917,2]
[374982297,1753488648943,-400.0,0.00021917,2]
[374982299,1753488648953,-1650.9,0.00021917,2]
[374982301,1753488648963,-400.0,0.00021917,2]
[374982303,1753488648972,-400.0,0.00021917,2]
[374982305,1753488648982,-400.0,0.00021917,2]
[374982307,1753488648992,-626.1,0.00021917,2]
[374982309,1753488649002,-545.07,0.00021917,2]
[374982311,1753488649010,-1643.28,0.00021917,2]
[374982313,1753488649020,-400.0,0.00021917,2]
[374982315,1753488649029,-400.0,0.00021917,2]
[374982317,1753488649039,-400.0,0.00021917,2]
[374982319,1753488649050,-440.21,0.00021917,2]
[374982321,1753488649060,-400.0,0.00021917,2]
[374982323,1753488649070,-400.0,0.00021917,2]
[374982325,1753488649079,-533.01,0.00021917,2]
[374982327,1753488649089,-400.0,0.00021917,2]
[374982329,1753488649098,-945.27,0.00021917,2]
[374982331,1753488649108,-400.0,0.00021917,2]
[374982333,1753488649117,-500.9,0.00021917,2]
[374982335,1753488649127,-151.0,0.00021917,2]
[374982337,1753488649136,-400.0,0.00021917,2]
[374982350,1753488649259,-400.0,0.00021917,2]
[374982352,1753488649270,-501.73,0.00021917,2]
[374982354,1753488649279,-585.073559,0.00021917,2]
[374982356,1753488649291,-525.64716558,0.00021917,2]
[374982358,1753488649303,-400.0,0.00021917,2]
[374982360,1753488649313,-476.59,0.00021917,2]
[374982362,1753488649322,-151.0,0.00021917,2]
[374982364,1753488649332,-400.0,0.00021917,2]
[374982366,1753488649341,-400.0,0.00021917,2]
[374982368,1753488649351,-400.0,0.00021917,2]
[374982370,1753488649360,-400.0,0.00021917,2]
[374982372,1753488649370,-400.0,0.00021917,2]
[374982373,1753488649379,-400.0,0.00021917,2]
[374982375,1753488649388,-864.86,0.00021917,2]
[374982377,1753488649400,-400.0,0.00021917,2]
[374982379,1753488649412,-490.46,0.00021917,2]
[374982381,1753488649422,-527.06,0.00021917,2]
[374982383,1753488649432,-400.0,0.00021917,2]
[374982385,1753488649441,-400.0,0.00021917,2]
[374982387,1753488649451,-252.61175,0.00021917,2]
[374982389,1753488649461,-400.0,0.00021917,2]
[374982391,1753488649470,-400.0,0.00021917,2]
[374982393,1753488649480,-400.0,0.00021917,2]
[374982395,1753488649490,-151.0,0.00021917,2]
[374982397,1753488649500,-400.0,0.00021917,2]
[374982399,1753488649510,-881.65,0.00021917,2]
[374982401,1753488649519,-1188.83,0.00021917,2]
[374982403,1753488649528,-151.0,0.00021917,2]
[374982405,1753488649537,-400.0,0.00021917,2]
[374982407,1753488649549,-400.0,0.00021917,2]
[374982409,1753488649558,-400.0,0.00021917,2]
[374982411,1753488649567,-151.0,0.00021917,2]
[374982413,1753488649576,-400.0,0.00021917,2]
[374982415,1753488649585,-151.0,0.00021917,2]
[374982417,1753488649595,-151.0,0.00021917,2]
[374982418,1753488649604,-2505.89,0.00021917,2]
[374982420,1753488649615,-400.0,0.00021917,2]
[374982422,1753488649625,-480.0,0.00021917,2]
[374982424,1753488649635,-2399.76,0.00021917,2]
[374982426,1753488649644,-400.0,0.00021917,2]
[374982428,1753488649653,-400.0,0.00021917,2]
[374982430,1753488649663,-400.0,0.00021917,2]
[374982432,1753488649673,-1937.77,0.00021917,2]
[374982434,1753488649683,-400.0,0.00021917,2]
[374982436,1753488649693,-400.0,0.00021917,2]
[374982438,1753488649702,-546.88,0.00021917,2]
[374982440,1753488649712,-400.0,0.00021917,2]
[374982442,1753488649721,-151.0,0.00021917,2]
[374982444,1753488649730,-151.0,0.00021917,2]
[374982446,1753488649740,-151.0,0.00021917,2]
[374982448,1753488649751,-400.0,0.00021917,2]
[374982450,1753488649762,-400.0,0.00021917,2]
[374982452,1753488649772,-877.16,0.00021917,2]
[374982454,1753488649781,-523.3,0.00021917,2]
[374982456,1753488649791,-504.21892783,0.00021917,2]
[374982458,1753488649801,-400.0,0.00021917,2]
[374982460,1753488649811,-3412.74,0.00021917,2]
[374982462,1753488649821,-400.0,0.00021917,2]
[374982464,1753488649831,-400.0,0.00021917,2]
[374982466,1753488649843,-2031.94,0.00021917,2]
[374982468,1753488649852,-214.17231,0.00021917,2]
[374982470,1753488649862,-400.0,0.00021917,2]
[374982472,1753488649871,-400.0,0.00021917,2]
[374982474,1753488649881,-400.0,0.00021917,2]
[374982476,1753488649891,-400.0,0.00021917,2]
[374982478,1753488649900,-419.58639799,0.00021917,2]
[374982483,1753488649936,-1602.76360201,0.00021917,2]
[374982485,1753488649945,-400.0,0.00021917,2]
[374982486,1753488649955,-1276.74,0.00021917,2]
[374982487,1753488649965,-400.0,0.00021917,2]
[374982488,1753488649975,-400.0,0.00021917,2]
[374982489,1753488649985,-3454.06,0.00021917,2]
[374982490,1753488649995,-400.0,0.00021917,2]
[374982491,1753488650004,-400.0,0.00021917,2]
[374982492,1753488650015,-400.0,0.00021917,2]
[374982493,1753488650025,-78.50389858,0.00021917,2]
[374983449,1753488896663,500.0,0.000273,120]
[374983450,1753488911866,500.0,0.000273,120]
[374983451,1753488930872,500.0,0.000273,120]
[374983452,1753488943674,263.0,0.000273,120]
[374983453,1753489385199,12500.0,0.00012893,3]
[374983454,1753489398760,1216.0,0.00025591,120]
[374983455,1753489405304,1969.220001,0.00012884,3]
[374983456,1753489405325,10530.779999,0.00012884,3]
[374983457,1753489425541,4469.220001,0.00012875,3]
[374983458,1753489425561,8030.779999,0.00012875,3]
[374983459,1753489443357,6969.220001,0.00012866,3]
[374983460,1753489443378,5530.779999,0.00012866,3]
[374983461,1753489462142,9469.220001,0.00012858,3]
[374983462,1753489462163,3030.779999,0.00012858,3]
[374983463,1753489480865,11969.220001,0.00012849,3]
[374983464,1753489480892,530.779999,0.00012849,3]
[374983465,1753489499630,12500.0,0.0001284,3]
[374983468,1753489680755,203.61,0.00013699,2]
[374983469,1753489690889,1765.610001,0.0001439,2]
[374983470,1753489690910,806.13327988,0.0001439,2]
[374983472,1753489715021,14193.86672012,0.000151,2]
[374983473,1753489715045,15000.0,0.000151,2]
[374983474,1753489715068,5187.09909515,0.000151,2]
[374983475,1753489719673,2243.55730714,0.00013368,2]
[374983476,1753489722700,5000.0,0.0001,2]
[374983489,1753489831469,-659.13,0.00019178,2]
[374983490,1753489831480,-220.85,0.00019178,2]
[374983491,1753489831490,-300.0,0.00019608,2]
[374983492,1753489831502,-509.0,0.00019631,2]
[374983493,1753489831512,-161.05499691,0.00020036,2]
[374983494,1753489831523,-1200.0,0.00020136,2]
[374983495,1753489831533,-203.61,0.00020187,2]
[374983496,1753489831544,-150.0,0.00020195,2]
[374983497,1753489831554,-150.0,0.00020195,2]
[374983498,1753489831564,-173.99988928,0.00020195,2]
[374983499,1753489831574,-208.064938,0.00020195,2]
[374983500,1753489831586,-150.0,0.00020195,2]
[374983501,1753489831595,-150.0,0.00020195,2]
[374983502,1753489831604,-150.0,0.00020195,2]
[374983503,1753489831614,-151.45039119,0.00020195,2]
[374983504,1753489831623,-150.0,0.00020195,2]
[374983505,1753489831632,-150.5365167,0.00020195,2]
[374983506,1753489831642,-150.0,0.00020195,2]
[374983507,1753489831651,-200.0,0.00020431,2]
[374983508,1753489831660,-1216.0,0.00020473,2]
[374983509,1753489831669,-499.28852315,0.00020476,2]
[374983510,1753489831689,-6192.05147685,0.00020476,2]
[374983511,1753489831698,-491.68,0.00020566,2]
[374983512,1753489831708,-1000.0,0.00020576,2]